Cogmind - Beta 11 @@@ ROGUE MODE // 2022.03.24 @ 13:29:01 Player: Happytimes Result: Self-destructed Performance ------------- Evolutions (3) 1500 Regions Visited (7) 1400 Robots Destroyed (93) 465 Value Destroyed (3191) 3191 Prototype IDs (9) 180 Alien Tech Used (0) 0 Bonus (277) 277 TOTAL SCORE: 7013 Bonus ------- High Alert Combat Kills 77 Entered Garrisons 200 Cogmind --------- Core Integrity 180/700 Matter 295/300 Energy 160/160 System Corruption 8% Temperature Cool (0) Movement Core (400) Ox7 Location -7/Garrison Parts ------- > --- POWER (2) -------- Light Nuclear Core > --- PROPULSION (4) --- (None) > --- UTILITY (4) ------ Small Storage Unit Improved Light Armor Plating > --- WEAPON (3) ------- Mini Assault Cannon Powered Hammer Powered Hammer > --- INVENTORY (8) ---- Kinecellerator System Shield Relay Coupler [NC] (29) Relay Coupler [Sentry] (26) Relay Coupler [Behemoth] (11) Mini Assault Cannon Heavy Missile Launcher Remote Datajack Peak State ------------ > --- POWER ------------ Light Nuclear Core Enhanced Nuclear Core > --- PROPULSION ------- Advanced Treads Aluminum Leg Aluminum Leg Titanium Leg > --- UTILITY ---------- Small Storage Unit Kinecellerator Improved Weapon Shielding Hardened Medium Armor Plating > --- WEAPON ----------- Gauss Cannon Mini Assault Cannon Mini Assault Cannon > --- INVENTORY -------- Kinecellerator System Shield Relay Coupler [Sentry] Relay Coupler [Behemoth] Heavy Missile Launcher Remote Datajack Powered Hammer Powered Hammer [Rating: 44] Favorites ----------- Power Light Nuclear Core Engine Cooled Ion Engine Power Core Light Nuclear Core Propulsion Aluminum Leg Treads Advanced Treads Leg Aluminum Leg Hover Unit Combat Airjet Utility Small Storage Unit Device Improved Heat Sink Storage Small Storage Unit Protection Improved Weapon Shielding Weapon Powered Hammer Energy Gun Particle Gun Energy Cannon Particle Cannon Ballistic Gun Assault Rifle Ballistic Cannon Gauss Cannon Launcher Grenade Launcher Special Weapon Plasma Cutter Impact Weapon Powered Hammer Slashing Weapon Blade Saw Build | -11 -10 -10 -9 -9 -8 -7 -7 ------- Run | Scr Mat Min Mat Min Mat Fac Gar Slots Evolved 6 | . . . 2 . 2 2 . Power 1 | . . . 1 . . . . Propulsion 2 | . . . . . 1 1 . Utility 2 | . . . 1 . 1 . . Weapon 1 | . . . . . . 1 . Parts Attached 107 | 6 1 6 20 6 25 25 18 Power 21 | 1 . . 6 1 4 2 7 Engine 6 | 1 . . 4 . . . 1 Core 15 | . . . 2 1 4 2 6 Reactor . | . . . . . . . . Propulsion 20 | 2 . 2 4 2 4 4 2 Treads 1 | . . . . . . 1 . Leg 16 | 2 . 2 4 . 3 3 2 Wheel . | . . . . . . . . Hover 3 | . . . . 2 1 . . Flight . | . . . . . . . . Utility 20 | 1 . . 4 . 8 5 2 Device 13 | . . . 3 . 6 3 1 Storage 2 | 1 . . . . 1 . . Processor . | . . . . . . . . Hackware . | . . . . . . . . Protection 5 | . . . 1 . 1 2 1 Artifact . | . . . . . . . . Weapon 46 | 2 1 4 6 3 9 14 7 Energy Gun 8 | . . . 2 . 5 1 . Energy Cannon 6 | . . 1 2 2 . 1 . Ballistic Gun 8 | 2 . 2 1 . . 3 . Ballistic Cannon 8 | . . . . . . 5 3 Launcher 8 | . 1 1 1 1 1 3 . Special Weapon 2 | . . . . . 1 1 . Impact Weapon 4 | . . . . . . . 4 Slashing Weapon 2 | . . . . . 2 . . Piercing Weapon . | . . . . . . . . Special Melee Weapon . | . . . . . . . . Unidentified Prototypes 9 | . . . 5 . 3 1 . Corrupted Parts 2 | . . . . . . . 2 System Corruption 8 | . . . . . . . 8 Parts Lost 30 | . . . 2 2 13 1 12 Power 7 | . . . 1 . 2 1 3 Propulsion 10 | . . . . 2 2 . 6 Utility 9 | . . . 1 . 5 . 3 Weapon 4 | . . . . . 4 . . Highest Loss Streak 7 | . . . 1 2 7 1 7 To Critical Strikes . | . . . . . . . . Average Slot Usage (%) 86 | . 85 85 94 98 74 99 71 Engine 8 | . 14 14 13 17 3 6 . Core 6 | . . . 7 4 7 6 9 Treads 1 | . . . . . . 7 2 Leg 17 | . 28 28 22 9 9 23 11 Hover 3 | . . . . 10 11 . . Device 12 | . . . 12 22 15 17 6 Storage 9 | . 14 14 11 11 9 7 7 Protection 3 | . . . 5 . 2 4 7 Energy Gun 2 | . . . 4 . 8 2 . Energy Cannon 6 | . . 14 11 20 3 1 . Ballistic Gun 3 | . 22 8 5 . . 4 . Ballistic Cannon 4 | . . . . . . 11 8 Launcher 1 | . 5 5 . 1 . . . Impact Weapon 2 | . . . . . . . 13 Naked Turns . | . . . . . . . . Heaviest Build 47 | 14 15 16 31 31 30 46 47 Greatest Support 37 | 20 20 20 23 24 27 37 37 Greatest Overweight (x) 10 | . . . 1 10 1 1 7 Average Overweight (x) . | . . . . 1 . . 2 Largest Inventory Capacity 8 | 8 8 8 8 8 8 8 8 Average Capacity 7 | 6 8 8 8 8 8 8 8 Most Carried 8 | 5 2 8 8 8 8 8 8 Average Carried 7 | 1 . 7 7 7 7 6 7 Final Capacity 8 | 8 8 8 8 8 8 8 8 Final Carried 8 | . 2 8 8 8 8 8 8 Class Distribution -------------------- 54% | Mutant 25% | Scavenger-Mutant 14% | Gunner 5% | Tank Dominant Class ---------------- Mutant | -10/Materials Mutant | -10/Mines Scavenger-Mutant | -9/Materials Mutant | -9/Mines Mutant | -8/Materials Gunner | -7/Factory Mutant | -7/Garrison Resources | -11 -10 -10 -9 -9 -8 -7 -7 ----------- Run | Scr Mat Min Mat Min Mat Fac Gar Matter Collected 1917 | 233 . 192 310 143 184 469 386 Remotely . | . . . . . . . . Salvage Created 3141 | . 35 191 1117 180 655 319 644 Parts 166 | . 2 20 71 8 35 17 13 Haulers Intercepted 7 | . . . 4 . 2 1 . Recyclers Shooed 2 | . . . 1 . . 1 . Parts Field Recycled . | . . . . . . . . Retrieved Matter . | . . . . . . . . Parts Self-Destructed . | . . . . . . . . Prevented . | . . . . . . . . Kills | -11 -10 -10 -9 -9 -8 -7 -7 ------- Run | Scr Mat Min Mat Min Mat Fac Gar Combat Hostiles Destroyed 78 | . 3 7 20 8 12 12 16 Melee 10 | . . . . . 3 . 7 Guns 9 | . . 1 5 . 3 . . Cannons 26 | . . 3 11 3 1 8 . AOE 23 | . 3 3 3 5 5 4 . Classes Destroyed 13 | . 3 1 4 2 1 1 1 Worker 2 | . . . 2 . . . . Builder 4 | . 1 . 2 . 1 . . Hauler 7 | . . . 4 . 2 1 . Recycler 4 | . . . 1 1 1 1 . Watcher 4 | . 1 . 2 . 1 . . Swarmer 22 | . 3 3 3 . 3 7 3 Grunt 39 | . . 4 16 . 6 3 10 Duelist 1 | . . . . . . . 1 Sentry 7 | . . . 1 1 2 1 2 Demolisher 1 | . . . . 1 . . . Hunter 1 | . . . . . 1 . . Programmer 1 | . . . . . . 1 . Assembled 6 | . . . . 6 . . . Best Kill Streak 6 | . 5 3 4 6 6 5 4 Combat Bots Only 6 | . 3 3 3 6 5 4 4 Max Kills in Single Turn 3 | . 2 3 2 2 2 3 1 Gunslinging . | . . . . . . . . Exploded 3 | . 2 3 2 2 2 3 . Melee 1 | . . . . . 1 . 1 Uniques/NPCs Destroyed . | . . . . . . . . Combat | -11 -10 -10 -9 -9 -8 -7 -7 -------- Run | Scr Mat Min Mat Min Mat Fac Gar Damage Taken 5899 | . 63 255 1023 319 1718 556 1965 Core 1328 | . 9 60 250 30 459 126 394 Absorbed by Shields 162 | . . . . . 162 . . Redirected to Shielding 134 | . . . 29 . . 36 69 Regen/Repaired (Parts) 106 | . . . . . 65 41 . Core Remaining (%) 54 | 100 . 72 . 30 16 . . Volleys Fired 180 | . 4 16 75 11 46 26 2 Largest 3 | . 1 2 2 2 2 3 3 Hottest 181 | . 30 80 136 136 131 181 144 Shots Fired 367 | . 4 31 150 16 91 69 6 Gun 175 | . . 15 72 . 68 20 . Cannon 168 | . . 15 76 11 17 43 6 Launcher 20 | . 4 1 2 5 3 5 . Special 4 | . . . . . 3 1 . Kinetic 116 | . . 15 40 . . 55 6 Thermal 227 | . . 15 108 11 85 8 . Explosive 20 | . 4 1 2 5 3 5 . Electromagnetic 3 | . . . . . 3 . . Robot Hit Streak 22 | . 1 8 12 6 22 9 2 Robot Miss Streak 6 | . 2 2 4 3 6 6 2 Penetration Max . | . . . . . . . . Secondary Targets . | . . . . . . . . Shots Hit Robots 302 | . 1 20 96 8 88 33 56 Core Hits 136 | . 7 11 38 14 36 21 9 Critical Kills 4 | . . . 2 . . . 2 Critical Parts Destroyed 10 | . . . . . . . 10 Critical Strikes 26 | . . . 2 . 9 2 13 Burn 3 | . . . . . 3 . . Meltdown 2 | . . . 2 . . . . Blast 2 | . . . . . . 2 . Smash 13 | . . . . . . . 13 Sever 6 | . . . . . 6 . . Melee Attacks 93 | . . . . . 29 . 64 Impact 64 | . . . . . . . 64 Slashing 29 | . . . . . 29 . . Piercing . | . . . . . . . . Sneak Attacks 2 | . . . . . 2 . . Combat Hostiles . | . . . . . . . . Follow-up Attacks 5 | . . . . . . . 5 Damage Inflicted 8161 | . 269 419 1869 441 1863 1241 2059 Guns 1785 | . . 129 679 . 797 180 . Cannons 2326 | . . 176 995 140 267 656 92 Explosions 1624 | . 269 114 179 295 362 405 . Melee 2365 | . . . . . 398 . 1967 Ramming 39 | . . . 16 6 17 . . Kinetic 1241 | . . 129 292 . . 728 92 Thermal 2915 | . . 176 1382 140 1109 108 . Explosive 1553 | . 269 114 179 295 297 399 . Electromagnetic 48 | . . . . . 42 6 . Impact 1967 | . . . . . . . 1967 Slashing 398 | . . . . . 398 . . Piercing . | . . . . . . . . Highest Corruption 8 | . . . 1 1 1 . 8 Average Corruption 1 | . . . 1 1 1 . 5 Corruption Purged . | . . . . . . . . Corruption Blocked . | . . . . . . . . Effects 26 | . . . 4 6 3 . 13 Message Errors 10 | . . . 1 2 2 . 5 Matter Fused 5 | . . . 1 2 . . 2 Heat Flow Errors 4 | . . . 1 1 . . 2 Energy Discharges 2 | . . . 1 . . . 1 Data Loss (minor) 4 | . . . . 1 1 . 2 Alerts 1 | . . . . . . . 1 Overload Shots . | . . . . . . . . Overflow Damage 484 | . 6 . 1 5 39 4 429 Projectiles 5 | . . . 1 . . 4 . Explosions 50 | . 6 . . 5 39 . . Melee 429 | . . . . . . . 429 Knockbacks 10 | . . . . . . 2 8 Impact 5 | . . . . . . . 5 Kinetic 4 | . . . . . . 2 2 Secondary 1 | . . . . . . . 1 Self-Inflicted Damage 313 | . 22 . 58 43 179 11 . Shots 10 | . 1 . 2 2 4 1 . Rammed 6 | . . . . . 6 . . Targets Rammed 11 | . . . 2 3 6 . . Kicked 5 | . . . 2 3 . . . Crushed . | . . . . . . . . Highest Temperature 414 | . . 135 332 67 414 46 203 Average Temperature 89 | . . 62 90 43 119 18 64 Received Heat Transfer 2148 | . . 129 498 . 678 84 759 Effects 3 | . . . 3 . . . . Interference 2 | . . . 2 . . . . Short Circuit 1 | . . . 1 . . . . Siege Activations . | . . . . . . . . Robots Corrupted . | . . . . . . . . Combat Hostiles . | . . . . . . . . Parts Fried 8 | . . . . . . . 8 Impact Corruptions 17 | . . . . . . . 17 Robots Melted 2 | . . . 2 . . . . Combat Hostiles 1 | . . . 1 . . . . Parts Melted 11 | . . 1 7 . 3 . . Heat Transferred 6253 | . . 370 2886 259 2516 222 . Parts Sabotaged . | . . . . . . . . Parts Stolen . | . . . . . . . . Parts Stripped . | . . . . . . . . Power Chain Reactions 1 | . . . . . 1 . . Missiles Intercepted . | . . . . . . . . Alert | -11 -10 -10 -9 -9 -8 -7 -7 ------- Run | Scr Mat Min Mat Min Mat Fac Gar Peak Influence 755 | . 174 264 345 277 294 386 755 Initial 175 | . . 67 24 117 29 133 175 Average 241 | . 68 165 194 160 148 195 502 Maximum Alert Level 3 | . . 1 1 1 1 1 3 Low Security (%) 48 | 100 100 68 50 60 74 40 9 Level 1 39 | . . 31 49 39 25 59 33 Level 2 9 | . . . . . . . 45 Level 3 2 | . . . . . . . 12 Level 4 . | . . . . . . . . Level 5 . | . . . . . . . . High Security . | . . . . . . . . Max Security . | . . . . . . . . Squads Dispatched 9 | . 1 . 1 . 3 4 . Investigation 2 | . . . . . . 2 . Extermination 1 | . . . . . . 1 . Reinforcement 6 | . 1 . 1 . 3 1 . Assault . | . . . . . . . . Garrison . | . . . . . . . . Intercept . | . . . . . . . . Searches Triggered . | . . . . . . . . Construction Impeded . | . . . . . . . . Haulers Reinforced . | . . . . . . . . Active Scanning Responses . | . . . . . . . . Cargo Convoy Interrupts . | . . . . . . . . Stealth | -11 -10 -10 -9 -9 -8 -7 -7 --------- Run | Scr Mat Min Mat Min Mat Fac Gar Distress Signals 7 | . 1 . 1 . 4 1 . Communications Jammed . | . . . . . . . . Distress Signals . | . . . . . . . . Times Spotted 137 | . 6 8 32 11 43 16 21 Peak Tracking Total 14 | . 4 3 5 3 14 4 5 Tactical Retreats 21 | . . 1 2 2 12 1 3 Traps | -11 -10 -10 -9 -9 -8 -7 -7 ------- Run | Scr Mat Min Mat Min Mat Fac Gar Traps Triggered 5 | . . . 1 . . . 4 Indirectly . | . . . . . . . . Trap Hack Attempts . | . . . . . . . . Triggered . | . . . . . . . . Disarmed . | . . . . . . . . Reprogrammed . | . . . . . . . . Reused . | . . . . . . . . Traps Extracted . | . . . . . . . . Installed . | . . . . . . . . Triggered . | . . . . . . . . Machines | -11 -10 -10 -9 -9 -8 -7 -7 ---------- Run | Scr Mat Min Mat Min Mat Fac Gar Machines Disabled 9 | . 1 . 1 . 1 4 2 Max in Single Turn 3 | . 1 . 1 . 1 3 1 Garrison Relay 2 | . . . . . . . 2 Machines Sabotaged . | . . . . . . . . Garrisons Compromised . | . . . . . . . . Overloaded Fab Kills . | . . . . . . . . Hacking | -11 -10 -10 -9 -9 -8 -7 -7 --------- Run | Scr Mat Min Mat Min Mat Fac Gar Machines Accessed 16 | . 1 . 2 . 8 5 . Terminals 11 | . 1 . 2 . 6 2 . Fabricators 1 | . . . . . . 1 . Repair Stations 2 | . . . . . 1 1 . Recycling Units 1 | . . . . . 1 . . Scanalyzers . | . . . . . . . . Garrison Access 1 | . . . . . . 1 . Total Hacks 44 | . 2 . 4 . 24 14 . Successful 30 | . 2 . 3 . 18 7 . Failed 14 | . . . 1 . 6 7 . Catastrophic . | . . . . . . . . Database Lockouts . | . . . . . . . . Manual . | . . . . . . . . Terminals 30 | . 2 . 4 . 18 6 . Fabricators 1 | . . . . . . 1 . Repair Stations 7 | . . . . . 4 3 . Recycling Units 2 | . . . . . 2 . . Scanalyzers . | . . . . . . . . Garrison Access 4 | . . . . . . 4 . Terminal Hacks 20 | . 2 . 3 . 12 3 . Robot Analysis 1 | . . . . . 1 . . Open DSF 1 | . . . . . . 1 . Emergency Access Points 5 | . . . 2 . 3 . . Terminal Index 1 | . . . . . 1 . . Fabricator Index 1 | . . . . . . 1 . Alert Level 2 | . . . . . 2 . . Locate Traps 2 | . 1 . . . 1 . . Dispatch Records 1 | . . . . . 1 . . Extermination Status 1 | . . . . . . 1 . Hauler Manifests 2 | . . . 1 . 1 . . Zone Layout 3 | . 1 . . . 2 . . Fabricator Hacks . | . . . . . . . . Repair Station Hacks 7 | . . . . . 4 3 . Scan Component 3 | . . . . . 2 1 . Repair 3 | . . . . . 2 1 . Refit 1 | . . . . . . 1 . Recycling Unit Hacks 2 | . . . . . 2 . . Report Inventory 1 | . . . . . 1 . . Retrieve Components 1 | . . . . . 1 . . Scanalyzer . | . . . . . . . . Garrison Access Hacks 1 | . . . . . . 1 . Unlock Access 1 | . . . . . . 1 . Unauthorized Hacks . | . . . . . . . . Terminals . | . . . . . . . . Fabricators . | . . . . . . . . Repair Stations . | . . . . . . . . Recycling Units . | . . . . . . . . Scanalyzers . | . . . . . . . . Garrison Access . | . . . . . . . . Data Cores Recovered 1 | . . . 1 . . . . Used . | . . . . . . . . Hacking Detections 10 | . . . 1 . 6 3 . Full Trace Events 4 | . . . . . 2 2 . Feedback Events . | . . . . . . . . Feedback Blocked . | . . . . . . . . Robot Schematics Acquired . | . . . . . . . . Robots Built . | . . . . . . . . Authchips . | . . . . . . . . Time . | . . . . . . . . Total Robot Build Rating . | . . . . . . . . Part Schematics Acquired . | . . . . . . . . Parts Built . | . . . . . . . . Authchips . | . . . . . . . . Time . | . . . . . . . . Total Part Build Rating . | . . . . . . . . Parts Repaired 3 | . . . . . 2 1 . Time 98 | . . . . . 76 22 . Parts Recycled . | . . . . . . . . Recycled Matter . | . . . . . . . . Retrieved Matter . | . . . . . . . . Retrieved Components 10 | . . . . . 10 . . Parts Scanalyzed . | . . . . . . . . Part Schematics Acquired . | . . . . . . . . Parts Damaged . | . . . . . . . . Bothacking | -11 -10 -10 -9 -9 -8 -7 -7 ------------ Run | Scr Mat Min Mat Min Mat Fac Gar Used RIF Installer . | . . . . . . . . Robots Hacked 1 | . . . . . . 1 . Non-combat 1 | . . . . . . 1 . Combat . | . . . . . . . . Robot Hacks Applied 1 | . . . . . . 1 . no_distress 1 | . . . . . . 1 . Relay Couplers Released 9 | . . . . . . . 9 Machine Destruction 9 | . . . . . . . 9 Fabnet Peak Effective % . | . . . . . . . . Robots Rewired . | . . . . . . . . Allies Hacked . | . . . . . . . . Hacks Repelled . | . . . . . . . . Allies | -11 -10 -10 -9 -9 -8 -7 -7 -------- Run | Scr Mat Min Mat Min Mat Fac Gar Total Allies 2 | . . 2 . . . . . Largest Group 2 | . . 2 2 . . . . Highest-Rated Group 45 | . . 45 45 . . . . Highest-Rated Ally 31 | . . 31 31 . . . . Total Orders . | . . . . . . . . Ally Attacks 5 | . . . 5 . . . . Total Damage 65 | . . . 65 . . . . Kills 1 | . . . 1 . . . . Allies Corrupted . | . . . . . . . . Allies Melted . | . . . . . . . . Intel | -11 -10 -10 -9 -9 -8 -7 -7 ------- Run | Scr Mat Min Mat Min Mat Fac Gar Robot Analysis Total 1 | . . . . . 1 . . Derelict Logs Recovered 2 | . . 2 . . . . . Drone Launches . | . . . . . . . . Drone Recoveries . | . . . . . . . . Exploration | -11 -10 -10 -9 -9 -8 -7 -7 ------------- Run | Scr Mat Min Mat Min Mat Fac Gar Turns Passed 5134 | 43 117 474 928 562 928 978 1104 Spaces Moved 2393 | 39 87 313 321 298 493 496 346 Core 127 | 21 . . . 5 . . 101 Treads 47 | . . . . . . . 47 Legs 1806 | 18 87 313 321 116 257 496 198 Wheels . | . . . . . . . . Hover 413 | . . . . 177 236 . . Flight . | . . . . . . . . Fastest Speed 50 | 50 120 120 120 146 76 123 190 Average Speed 159 | 82 120 120 186 170 106 159 253 Slowest Speed 550 | 120 120 120 190 550 150 193 400 Overloaded Moves . | . . . . . . . . Propulsion Burnouts . | . . . . . . . . Robots Hopped . | . . . . . . . . Cave-ins Triggered . | . . . . . . . . Exploration Rate (%) 37 | 3 26 73 35 56 53 14 39 Regions Visited 7 Branch Regions 2 Pre-discovered Areas 1 | . . . . 1 . . . Known Exits Taken 1 | . . . . . . 1 . Unknown Exits Taken 6 | 1 1 1 1 1 1 . . Scrap Searched 2 | . . 1 . 1 . . . Spaces Dug 31 | . . . . . . 31 . Terrain Destroyed 188 | . 21 4 7 55 29 72 . Melee . | . . . . . . . . Projectile 20 | . . . . . . 20 . AOE 168 | . 21 4 7 55 29 52 . Terrain Rammed . | . . . . . . . . Walls Destroyed . | . . . . . . . . Machines Disabled . | . . . . . . . . Actions | -11 -10 -10 -9 -9 -8 -7 -7 --------- Run | Scr Mat Min Mat Min Mat Fac Gar Total 3184 | 49 95 378 502 333 742 625 460 Wait 289 | . 2 37 57 10 115 52 16 Move 2386 | 38 86 312 320 297 492 495 346 Hop . | . . . . . . . . Pick Up 61 | 5 2 6 11 3 17 14 3 Fast Attach 28 | 1 . . 6 2 8 5 6 Attach 31 | 5 . . 5 . 12 9 . Detach 2 | . . . . . 1 1 . Swap 48 | . 1 6 9 4 5 11 12 Drop 48 | . . 1 17 3 11 12 4 Fire 180 | . 4 16 75 11 46 26 2 Melee 86 | . . . . . 29 . 57 Ram 6 | . . . . . 6 . . Kick 5 | . . . 2 3 . . . Crush . | . . . . . . . . Escape Stasis 14 | . . . . . . . 14 Rewire . | . . . . . . . . Trap . | . . . . . . . . Miscellaneous . | . . . . . . . . Route ------- -11/Scrapyard -10/Materials -10/Mines -9/Materials (discovered 2 exits: *Mat / [*Min]) -9/Mines -8/Materials -7/Factory -7/Garrison (discovered 1 exit: [*Fac]) History --------- Turn | Location | Event 15 | -11/Scrapyard | Discovered new exit (range 15) 44 | -11/Scrapyard | Entered Materials 102 | -10/Materials | Discovered new exit (range 16) 161 | -10/Materials | Entered Mines 187 | -10/Mines | Learned Materials stockpile data 208 | -10/Mines | Received a Rocket Launcher from a helpful Derelict 303 | -10/Mines | Build established: Mutant 436 | -10/Mines | Learned Materials stockpile data 616 | -10/Mines | Discovered new exit (range 6) 635 | -10/Mines | Entered Materials 635 | -9/Materials | Accompanied by 2 allies 635 | -9/Materials | Evolved 2 slots: Power x1, Utility x1 640 | -9/Materials | Led the pair of lost Derelicts to an unsafe place 947 | -9/Materials | Build established: Scavenger-Mutant 1071 | -9/Materials | Discovered new exit (range 15) 1281 | -9/Materials | Core integrity fell below 50% 1527 | -9/Materials | Build established: Mutant 1549 | -9/Materials | Discovered new exit (range 7) 1563 | -9/Materials | Entered Mines 1564 | -9/Mines | Learned location of Storage (-7) 1688 | -9/Mines | Found a hidden stash of uninstalled traps 1706 | -9/Mines | Assembled infested the area 1861 | -9/Mines | Joined a pair of Derelicts in attacking an 0b10 outpost 2007 | -9/Mines | Discovered new exit (range 8) 2125 | -9/Mines | Entered Materials 2125 | -8/Materials | Evolved 2 slots: Propulsion x1, Utility x1 2167 | -8/Materials | Build established: Scavenger-Mutant 2175 | -8/Materials | Repaired Imp. Heat Sink 2215 | -8/Materials | Repaired Imp. Heat Sink 2497 | -8/Materials | Core integrity fell below 50% 2533 | -8/Materials | Lost 7 parts (1p1n3u2w) 2792 | -8/Materials | Build established: Mutant 2923 | -8/Materials | Core integrity fell below 20% 3008 | -8/Materials | Lost 3 parts (2u1w) 3021 | -8/Materials | Discovered new exit (range 14) 3053 | -8/Materials | Entered Factory 3053 | -7/Factory | Evolved 2 slots: Propulsion x1, Weapon x1 3130 | -7/Factory | Repaired Kinecellerator 3334 | -7/Factory | Build established: Gunner 4029 | -7/Factory | Identified exit to Garrison 4031 | -7/Factory | Entered Garrison 4090 | -7/Garrison | Triggered checkpoint 4169 | -7/Garrison | Garrison Relay disabled 4324 | -7/Garrison | Triggered checkpoint 4395 | -7/Garrison | Lost 3 parts (2n1u) 4526 | -7/Garrison | Triggered checkpoint 4603 | -7/Garrison | Garrison Relay disabled 4666 | -7/Garrison | Discovered new exit (range 15) 4723 | -7/Garrison | Core integrity fell below 50% 4751 | -7/Garrison | Lost 7 parts (2p3n2u) 5002 | -7/Garrison | Build established: Mutant 5135 | -7/Garrison | Self-destructed Last Messages --------------- 04752_ Y-54 Guardian system terminally corrupted. 04752_ Lgt. Treads fried. 04762_ Acquired Imp. Light Armor Plating. 04806_ YM9GIJX T XKCHNOJVVP8CN4MXWCD=/MQ0/P&J% 04817_ Acquired 10 matter. 04829_ Acquired Corrupted Lgt. Nuclear Core. 04829_ Integrated Corrupted Lgt. Nuclear Core (+6). 04831_ Acquired 4 matter. 04836_ System corrupted: Component data lost. 04863_ Acquired 6 matter. 04897_ OYNUU HXHGYN>B =D4RYII:>MV2CJ:6VF:PLU8 05074_ GIGCQ>QQR7 S,8/QDL&FU|D2EL 05105_ System corrupted: IFF burst signal emitted. 05124_ System corrupted: Heat flow error (+159). Map ----- +----------------------------------------------------+ | ??????# ^#?????# #????????????????????? | | ??????############ ####### #????????????????????? | | ?????????????????# #????????????????????? | | ?????????????????# #########????????????????????? | | ?????????????????# ^#????????????????????????????? | | ?????????????????# #????????????????????????????? | | ?????????????????# #????????????????????????????? | | ?????????????????# #????????????????????????????? | | ?????????????????# #????????????????????????????? | | ?????????????????# #????????????????????????????? | | ?????????????????# #?????????#??????????????????? | | ?????????????????# #????????%#??????????#???????? | | ?????????????????# #??????##+###""""## ##??????? | | ?????????????????# ######## %[ #??????? | | ?????????????????# ????? | | ?????????????????# * ^ ^ ????? | | ?????????????????########### ##^ ## ##?????? | | ?????????????????????????### %## ## #??????? | | ?????????????????????????# "??????? | | ?????????????????????????# "??????? | | ?????????????????????????# "??????? | | ?????????????????????????# "??????? | | ?????????????????????????### ## ## #??????? | | ?????????????###############! ## #??? #??????? | | ?????????????# g gg ??????? | | ?????????????# @ ??????? | | ?????????????# ??????? | | ?????????????# #### ###########""""######??????? | | ?????????????# #??# #??????????????????????????? | | ?????????????# #??# #??????????????????????????? | | ?????????????# #??# #??????????????????????????? | | ?????????????# #??# #??????????????????????????? | | ??????######## #### #??????????????????????????? | | ??????# =% %#??????????????????????????? | | ??????#[###### ####+#??????????????????????????? | | ??????# ###??# #??#[#??????????????????????????? | | ??????# ! #??# #??# #??????????????????????????? | | ??????#[ #??# #?? ??????????????????????????? | | ??????# #??# #??###??????????????????????????? | | ??????# ###??# #???????????????????????????????? | | ??????# #????# #???????????????????????????????? | | ####### #????# #???????????????????????????????? | | #""" "" #????# #???????????????????????????????? | | #"]!!! #????# #???????????????????????????????? | | #" ! #????# #???????????????????????????????? | | #########????# #???????????????????????????????? | | ?????????????# #???????????????????????????????? | | ?????????????# #???????????????????????????????? | | ????????????## ########????????????????????????? | | ????????????# % +% #????????????????????? | +----------------------------------------------------+ Best States ------------- Heat Dissipation 70 Energy Generation 26 Energy Capacity 460 Matter Stores 300 Matter Capacity 300 Sight Range 16 Terrain Scan Density 10 ECM Strength 2 Armor Coverage 225 Weapon Shielding 66 Evasion (%) 55 Recoil Reduction 1 Kinecelleration 30 Item Schematics ----------------- None Robot Schematics ------------------ None Fabricated ------------ Nothing Alien Tech Used ----------------- None Achievements -------------- None Challenges ------------ None Game ------ Seed InsulationCoolingDevice Manual? 0 Play Time 00:50:35 Cumulative 37.3 hours Start 2022.03.24 @ 10:32:52 End 2022.03.24 @ 13:29:01 Sessions 1 Manual Loads 0 Difficulty Rogue Special Mode None Game No. 108 Rogue 108 Adventurer 0 Explorer 0 Win Type - Total 0 Types 0/0/0/0/0/0/0/0/0 Lore% 31 Gallery% 44 Achievement% 33 Wizard Run 0 Options --------- ASCII 0 Keyboard 0 Movement Arrows Keybinds 0 Fullscreen 1 Font 18/SmallcapsGlow Map View 76x50 Tactical HUD 1 Map Filters NONE Filters NONE Steam 1 RUN: 51e2412b-2ea7-44a0-b8c2-0cd8967530eb